lending/lending_fUSD_20250706
["ID","MTS","AMOUNT","RATE_DAILY","PERIOD"]
[369936318,1751788256419,-460.0,0.00019178,2]
[369936320,1751788256429,-460.0,0.00019178,2]
[369936323,1751788256438,-460.0,0.00019178,2]
[369936324,1751788256447,-460.0,0.00019178,2]
[369936326,1751788256456,-460.0,0.00019178,2]
[369936328,1751788256466,-460.0,0.00019178,2]
[369936330,1751788256475,-460.0,0.00019178,2]
[369936332,1751788256484,-614.87,0.00019178,2]
[369936334,1751788256495,-5645.17,0.00019178,2]
[369936336,1751788256505,-460.0,0.00019178,2]
[369936338,1751788256514,-460.0,0.00019178,2]
[369936341,1751788256523,-460.0,0.00019178,2]
[369936343,1751788256533,-665.18,0.00019178,2]
[369936344,1751788256542,-490.84944042,0.00019178,2]
[369936346,1751788256551,-665.18,0.00019178,2]
[369936349,1751788256560,-665.18,0.00019178,2]
[369936351,1751788256570,-665.18,0.00019178,2]
[369936353,1751788256579,-1068.34,0.00019178,2]
[369936355,1751788256589,-665.18,0.00019178,2]
[369936357,1751788256598,-460.0,0.00019178,2]
[369936359,1751788256607,-2126.38,0.00019178,2]
[369936361,1751788256616,-460.0,0.00019178,2]
[369936363,1751788256626,-460.0,0.00019178,2]
[369936365,1751788256635,-460.0,0.00019178,2]
[369936367,1751788256644,-540.44,0.00019178,2]
[369936369,1751788256653,-460.0,0.00019178,2]
[369936371,1751788256663,-460.0,0.00019178,2]
[369936373,1751788256672,-460.0,0.00019178,2]
[369936375,1751788256681,-460.0,0.00019178,2]
[369936377,1751788256691,-460.0,0.00019178,2]
[369936379,1751788256700,-460.0,0.00019178,2]
[369936381,1751788256709,-460.0,0.00019178,2]
[369936383,1751788256719,-460.0,0.00019178,2]
[369936385,1751788256728,-582.06,0.00019178,2]
[369936387,1751788256738,-520.72,0.00019178,2]
[369936389,1751788256747,-460.0,0.00019178,2]
[369936391,1751788256757,-460.0,0.00019178,2]
[369936393,1751788256766,-460.0,0.00019178,2]
[369936395,1751788256775,-460.0,0.00019178,2]
[369936397,1751788256784,-460.0,0.00019178,2]
[369936399,1751788256794,-460.0,0.00019178,2]
[369936401,1751788256803,-460.0,0.00019178,2]
[369936403,1751788256812,-1293.13,0.00019178,2]
[369936405,1751788256821,-1371.49,0.00019178,2]
[369936406,1751788256830,-460.0,0.00019178,2]
[369936408,1751788256839,-1081.52,0.00019178,2]
[369936410,1751788256848,-460.0,0.00019178,2]
[369936412,1751788256858,-460.0,0.00019178,2]
[369936414,1751788256867,-460.0,0.00019178,2]
[369936416,1751788256876,-460.0,0.00019178,2]
[369936418,1751788256886,-460.0,0.00019178,2]
[369936420,1751788256895,-460.0,0.00019178,2]
[369936422,1751788256905,-460.0,0.00019178,2]
[369936424,1751788256914,-656.72,0.00019178,2]
[369936426,1751788256924,-460.0,0.00019178,2]
[369936428,1751788256933,-460.0,0.00019178,2]
[369936430,1751788256942,-460.0,0.00019178,2]
[369936432,1751788256952,-542.99,0.00019178,2]
[369936434,1751788256961,-603.42449767,0.00019178,2]
[369936436,1751788256970,-460.0,0.00019178,2]
[369936438,1751788256980,-774.51,0.00019178,2]
[369936440,1751788256989,-460.0,0.00019178,2]
[369936442,1751788256999,-460.0,0.00019178,2]
[369936444,1751788257010,-460.0,0.00019178,2]
[369936446,1751788257020,-460.0,0.00019178,2]
[369936448,1751788257030,-460.0,0.00019178,2]
[369936450,1751788257039,-963.74,0.00019178,2]
[369936452,1751788257049,-460.0,0.00019178,2]
[369936454,1751788257058,-1130.3,0.00019178,2]
[369936456,1751788257067,-736.9,0.00019178,2]
[369936458,1751788257077,-1555.34,0.00019178,2]
[369936460,1751788257087,-460.0,0.00019178,2]
[369936462,1751788257096,-460.0,0.00019178,2]
[369936464,1751788257106,-460.0,0.00019178,2]
[369936466,1751788257115,-460.0,0.00019178,2]
[369936468,1751788257124,-460.0,0.00019178,2]
[369936470,1751788257134,-460.0,0.00019178,2]
[369936472,1751788257143,-460.0,0.00019178,2]
[369936474,1751788257152,-460.0,0.00019178,2]
[369936476,1751788257163,-1263.7,0.00019178,2]
[369936478,1751788257172,-4459.4,0.00019178,2]
[369936480,1751788257182,-595.11,0.00019178,2]
[369936482,1751788257192,-491.09952169,0.00019178,2]
[369936484,1751788257205,-460.0,0.00019178,2]
[369936486,1751788257214,-460.0,0.00019178,2]
[369936488,1751788257224,-656.9,0.00019178,2]
[369936490,1751788257232,-460.0,0.00019178,2]
[369936492,1751788257241,-496.89625222,0.00019178,2]
[369936494,1751788257250,-713.08,0.00019178,2]
[369936496,1751788257260,-902.61,0.00019178,2]
[369936498,1751788257269,-541.11,0.00019178,2]
[369936500,1751788257278,-460.0,0.00019178,2]
[369936502,1751788257288,-460.0,0.00019178,2]
[369936504,1751788257297,-460.0,0.00019178,2]
[369936506,1751788257307,-460.0,0.00019178,2]
[369936508,1751788257316,-460.0,0.00019178,2]
[369936510,1751788257325,-460.0,0.00019178,2]
[369936512,1751788257335,-618.97,0.00019178,2]
[369936514,1751788257345,-460.0,0.00019178,2]
[369936516,1751788257354,-1101.97,0.00019178,2]
[369936518,1751788257363,-460.0,0.00019178,2]
[369936520,1751788257373,-473.3,0.00019178,2]
[369936522,1751788257382,-460.0,0.00019178,2]
[369936523,1751788257391,-460.0,0.00019178,2]
[369936524,1751788257401,-460.0,0.00019178,2]
[369936525,1751788257410,-460.0,0.00019178,2]
[369936526,1751788257419,-877.08,0.00019178,2]
[369936527,1751788257429,-557.31648132,0.00019178,2]
[369936528,1751788257438,-490.0,0.00019178,2]
[369936529,1751788257448,-618.18,0.00019178,2]
[369936530,1751788257457,-400.81031954,0.00019178,2]
[369936531,1751788257466,-460.0,0.00019178,2]
[369936532,1751788257476,-460.0,0.00019178,2]
[369936534,1751788257486,-492.53540493,0.00019178,2]
[369936536,1751788257495,-460.0,0.00019178,2]
[369936538,1751788257504,-575.58627201,0.00019178,2]
[369936540,1751788257513,-460.0,0.00019178,2]
[369936542,1751788257523,-460.0,0.00019178,2]
[369936544,1751788257533,-460.0,0.00019178,2]
[369936546,1751788257543,-490.0,0.00019178,2]
[369936548,1751788257552,-1218.58,0.00019178,2]
[369936550,1751788257561,-460.0,0.00019178,2]
[369936552,1751788257570,-1439.3,0.00019178,2]
[369936554,1751788257579,-460.0,0.00019178,2]
[369936556,1751788257589,-1917.24,0.00019178,2]
[369936558,1751788257598,-350.60217386,0.00019178,2]
[369936560,1751788257607,-1382.4,0.00019178,2]
[369936562,1751788257616,-460.0,0.00019178,2]
[369936564,1751788257626,-460.0,0.00019178,2]
[369936566,1751788257635,-460.0,0.00019178,2]
[369936568,1751788257646,-460.0,0.00019178,2]
[369936570,1751788257655,-460.0,0.00019178,2]
[369936572,1751788257665,-460.0,0.00019178,2]
[369936574,1751788257674,-460.0,0.00019178,2]
[369936576,1751788257683,-460.0,0.00019178,2]
[369936578,1751788257693,-616.7,0.00019178,2]
[369936580,1751788257702,-460.0,0.00019178,2]
[369936582,1751788257711,-3805.11,0.00019178,2]
[369936584,1751788257720,-553.56,0.00019178,2]
[369936586,1751788257730,-460.0,0.00019178,2]
[369936588,1751788257738,-460.0,0.00019178,2]
[369936590,1751788257747,-460.0,0.00019178,2]
[369936592,1751788257756,-490.0,0.00019178,2]
[369936593,1751788257766,-460.0,0.00019178,2]
[369936596,1751788257775,-460.0,0.00019178,2]
[369936597,1751788257784,-877.92,0.00019178,2]
[369936599,1751788257793,-877.92,0.00019178,2]
[369936602,1751788257803,-460.0,0.00019178,2]
[369936603,1751788257812,-877.92,0.00019178,2]
[369936606,1751788257822,-801.64,0.00019178,2]
[369936608,1751788257831,-460.0,0.00019178,2]
[369936609,1751788257840,-877.92,0.00019178,2]
[369936611,1751788257850,-877.92,0.00019178,2]
[369936614,1751788257859,-460.0,0.00019178,2]
[369936616,1751788257869,-460.0,0.00019178,2]
[369936617,1751788257878,-437.21899486,0.00019178,2]
[369936619,1751788257887,-835.86,0.00019178,2]
[369936621,1751788257896,-460.0,0.00019178,2]
[369936623,1751788257906,-760.69,0.00019178,2]
[369936625,1751788257915,-491.98724335,0.00019178,2]
[369936627,1751788257925,-1500.0,0.00019178,2]
[369936629,1751788257934,-460.0,0.00019178,2]
[369936631,1751788257943,-1513.62,0.00019178,2]
[369936633,1751788257952,-1180.95,0.00019178,2]
[369936635,1751788257962,-2456.2,0.00019178,2]
[369936637,1751788257971,-460.0,0.00019178,2]
[369936639,1751788257981,-460.0,0.00019178,2]
[369936641,1751788257990,-460.0,0.00019178,2]
[369936643,1751788257999,-460.0,0.00019178,2]
[369936645,1751788258009,-460.0,0.00019178,2]
[369936647,1751788258018,-460.0,0.00019178,2]
[369936649,1751788258028,-460.0,0.00019178,2]
[369936651,1751788258037,-493.34846461,0.00019178,2]
[369936653,1751788258047,-771.68,0.00019178,2]
[369936655,1751788258056,-460.0,0.00019178,2]
[369936657,1751788258066,-460.0,0.00019178,2]
[369936659,1751788258075,-460.0,0.00019178,2]
[369936661,1751788258084,-460.0,0.00019178,2]
[369936663,1751788258095,-460.0,0.00019178,2]
[369936665,1751788258105,-898.9,0.00019178,2]
[369936667,1751788258114,-460.0,0.00019178,2]
[369936668,1751788258124,-460.0,0.00019178,2]
[369936669,1751788258133,-523.2998413,0.00019178,2]
[369936670,1751788258142,-460.0,0.00019178,2]
[369936671,1751788258151,-460.0,0.00019178,2]
[369936672,1751788258160,-460.0,0.00019178,2]
[369936673,1751788258169,-460.0,0.00019178,2]
[369936674,1751788258179,-460.0,0.00019178,2]
[369936675,1751788258188,-460.0,0.00019178,2]
[369936676,1751788258201,-460.0,0.00019178,2]
[369936677,1751788258212,-460.0,0.00019178,2]
[369936678,1751788258221,-972.29,0.00019178,2]
[369936679,1751788258230,-460.0,0.00019178,2]
[369936680,1751788258239,-460.0,0.00019178,2]
[369936681,1751788258250,-460.0,0.00019178,2]
[369936682,1751788258259,-468.95897223,0.00019178,2]
[369936683,1751788258268,-963.45,0.00019178,2]
[369936684,1751788258277,-460.0,0.00019178,2]
[369936685,1751788258287,-460.0,0.00019178,2]
[369936686,1751788258296,-460.0,0.00019178,2]
[369936687,1751788258305,-460.0,0.00019178,2]
[369936688,1751788258315,-850.67,0.00019178,2]
[369936689,1751788258324,-460.0,0.00019178,2]
[369936690,1751788258334,-460.0,0.00019178,2]
[369936691,1751788258343,-460.0,0.00019178,2]
[369936692,1751788258353,-460.0,0.00019178,2]
[369936693,1751788258362,-460.0,0.00019178,2]
[369936694,1751788258373,-422.36241149,0.00019178,2]
[369936695,1751788258382,-1406.33,0.00019178,2]
[369936696,1751788258393,-460.0,0.00019178,2]
[369936697,1751788258402,-460.0,0.00019178,2]
[369936698,1751788258411,-460.0,0.00019178,2]
[369936699,1751788258421,-486.43,0.00019178,2]
[369936700,1751788258430,-460.0,0.00019178,2]
[369936701,1751788258440,-460.0,0.00019178,2]
[369936702,1751788258449,-490.0,0.00019178,2]
[369936703,1751788258458,-630.22,0.00019178,2]
[369936704,1751788258468,-806.4,0.00019178,2]
[369936705,1751788258638,-460.0,0.00019178,2]
[369936707,1751788258663,-500.54561515,0.00019178,2]
[369936708,1751788258672,-460.0,0.00019178,2]
[369936710,1751788258682,-460.0,0.00019178,2]
[369936712,1751788258692,-914.14,0.00019178,2]
[369936714,1751788258702,-460.0,0.00019178,2]
[369936717,1751788258712,-460.0,0.00019178,2]
[369936719,1751788258723,-460.0,0.00019178,2]
[369936721,1751788258732,-460.0,0.00019178,2]
[369936723,1751788258742,-460.0,0.00019178,2]
[369936724,1751788258752,-460.0,0.00019178,2]
[369936727,1751788258763,-490.0,0.00019178,2]
[369936728,1751788258772,-460.0,0.00019178,2]
[369936730,1751788258782,-1481.67,0.00019178,2]
[369936732,1751788258791,-460.0,0.00019178,2]
[369936734,1751788258801,-662.08,0.00019178,2]
[369936736,1751788258810,-460.0,0.00019178,2]
[369936738,1751788258819,-460.0,0.00019178,2]
[369936741,1751788258829,-460.0,0.00019178,2]
[369936743,1751788258838,-460.0,0.00019178,2]
[369936745,1751788258848,-460.0,0.00019178,2]
[369936746,1751788258857,-677.83,0.00019178,2]
[369936748,1751788258866,-677.83,0.00019178,2]
[369936750,1751788258875,-677.83,0.00019178,2]
[369936753,1751788258885,-677.83,0.00019178,2]
[369936754,1751788258894,-608.84,0.00019178,2]
[369936756,1751788258904,-677.83,0.00019178,2]
[369936758,1751788258913,-460.0,0.00019178,2]
[369936760,1751788258922,-668.9,0.00019178,2]
[369936762,1751788258932,-460.0,0.00019178,2]
[369936764,1751788258941,-460.0,0.00019178,2]
[369936766,1751788258951,-531.94,0.00019178,2]
[369936769,1751788258960,-567.93,0.00019178,2]
[369936770,1751788258970,-460.0,0.00019178,2]
[369936773,1751788258979,-1813.32,0.00019178,2]
[369936775,1751788258989,-460.0,0.00019178,2]
[369936777,1751788258998,-1366.03,0.00019178,2]
[369936779,1751788259007,-672.62,0.00019178,2]
[369936781,1751788259016,-460.0,0.00019178,2]
[369936782,1751788259025,-500.0,0.00019178,2]
[369936785,1751788259035,-26154.732543,0.00019178,2]
[369936787,1751788259044,-460.0,0.00019178,2]
[369936789,1751788259053,-955.351711,0.00019178,2]
[369936790,1751788259062,-500.0,0.00019178,2]
[369936793,1751788259071,-4008.191455,0.00019178,2]
[369936794,1751788259081,-500.0,0.00019178,2]
[369936795,1751788259090,-500.0,0.00019178,2]
[369936796,1751788259099,-500.0,0.00019178,2]
[369936797,1751788259108,-500.0,0.00019178,2]
[369936798,1751788259118,-576.56,0.00019178,2]
[369936799,1751788259127,-5669.66,0.00019178,2]
[369936800,1751788259137,-460.0,0.00019178,2]
[369936801,1751788259146,-460.0,0.00019178,2]
[369936802,1751788259156,-460.0,0.00019178,2]
[369936803,1751788259165,-460.0,0.00019178,2]
[369936804,1751788259175,-792.235316,0.00019178,2]
[369936806,1751788259184,-460.0,0.00019178,2]
[369936808,1751788259194,-460.0,0.00019178,2]
[369936810,1751788259204,-690.67,0.00019178,2]
[369936812,1751788259213,-26668.737623,0.00019178,2]
[369936814,1751788259222,-460.0,0.00019178,2]
[369936816,1751788259232,-460.0,0.00019178,2]
[369936818,1751788259241,-460.0,0.00019178,2]
[369936820,1751788259250,-460.0,0.00019178,2]
[369936822,1751788259260,-2054.99,0.00019178,2]
[369936823,1751788259269,-1244.94,0.00019178,2]
[369936826,1751788259278,-701.97,0.00019178,2]
[369936828,1751788259288,-460.0,0.00019178,2]
[369936830,1751788259297,-680.59,0.00019178,2]
[369936831,1751788259306,-28191.437919,0.00019178,2]
[369936833,1751788259316,-460.0,0.00019178,2]
[369936835,1751788259326,-460.0,0.00019178,2]
[369936838,1751788259335,-460.0,0.00019178,2]
[369936839,1751788259344,-460.0,0.00019178,2]
[369936842,1751788259354,-478.69,0.00019178,2]
[369936843,1751788259363,-460.0,0.00019178,2]
[369936846,1751788259373,-460.0,0.00019178,2]
[369936847,1751788259382,-1861.52,0.00019178,2]
[369936849,1751788259392,-460.0,0.00019178,2]
[369936851,1751788259402,-460.0,0.00019178,2]
[369936854,1751788259412,-460.0,0.00019178,2]
[369936856,1751788259421,-460.0,0.00019178,2]
[369936858,1751788259431,-517.82,0.00019178,2]
[369936860,1751788259440,-460.0,0.00019178,2]
[369936862,1751788259449,-460.0,0.00019178,2]
[369936864,1751788259459,-693.37,0.00019178,2]
[369936866,1751788259468,-460.0,0.00019178,2]
[369936868,1751788259477,-460.0,0.00019178,2]
[369936870,1751788259486,-460.0,0.00019178,2]
[369936872,1751788259495,-460.0,0.00019178,2]
[369936873,1751788259504,-876.1,0.00019178,2]
[369936875,1751788259514,-952.11,0.00019178,2]
[369936877,1751788259523,-533.72,0.00019178,2]
[369936880,1751788259533,-517.21,0.00019178,2]
[369936882,1751788259543,-460.0,0.00019178,2]
[369936884,1751788259552,-460.0,0.00019178,2]
[369936886,1751788259561,-533.05980643,0.00019178,2]
[369936888,1751788259571,-45147.57,0.00019178,2]
[369936890,1751788259581,-460.0,0.00019178,2]
[369936892,1751788259590,-460.0,0.00019178,2]
[369936894,1751788259599,-460.0,0.00019178,2]
[369936896,1751788259608,-462.42,0.00019178,2]
[369936898,1751788259618,-460.0,0.00019178,2]
[369936900,1751788259627,-491.7565078,0.00019178,2]
[369936902,1751788259636,-460.0,0.00019178,2]
[369936904,1751788259645,-460.0,0.00019178,2]
[369936905,1751788259655,-460.0,0.00019178,2]
[369936908,1751788259664,-460.0,0.00019178,2]
[369936910,1751788259673,-460.0,0.00019178,2]
[369936912,1751788259683,-156.587,0.00019178,2]
[369936914,1751788259692,-229594.53073895,0.00019178,2]
[369936983,1751788260355,-314.4423843,0.00019178,2]
[369936985,1751788260367,-66657.64910273,0.00019178,2]
[369936987,1751788260379,-21241.26760562,0.00019178,2]
[369936989,1751788260389,-1272.80962437,0.00019178,2]
[369936991,1751788260398,-298.7355148,0.00019178,2]
[369936993,1751788260407,-157.5,0.00019178,2]
[369936995,1751788260417,-150.0,0.00019178,2]
[369936997,1751788260427,-500.0,0.00019179,2]
[369936999,1751788260436,-297.52633706,0.00019179,2]
[369937001,1751788260445,-500.0,0.00019179,2]
[369937003,1751788260454,-500.0,0.00019179,2]
[369937005,1751788260463,-268.50056635,0.00019179,2]
[369937014,1751788260535,-231.49943365,0.00019179,2]
[369937016,1751788260544,-387.40789382,0.00019179,2]
[369937018,1751788260553,-500.0,0.00019179,2]
[369937020,1751788260562,-150.0,0.00019185,2]
[369937043,1751788260769,-200.0,0.0001919,2]
[369937045,1751788260779,-150.0,0.00019192,2]
[369937048,1751788260788,-150.0,0.00019198,2]
[369937050,1751788260798,-152.85550246,0.00019212,2]
[369937052,1751788260807,-150.0,0.00019217,2]
[369937054,1751788260816,-150.0,0.00019233,2]
[369937055,1751788260825,-208.0,0.0001924,2]
[369937057,1751788260835,-152.85550246,0.00019257,2]
[369937060,1751788260844,-1168.09013264,0.0001926,2]
[369937062,1751788260853,-572.0,0.00019262,2]
[369937064,1751788260863,-500.0,0.00019262,2]
[369937065,1751788260873,-500.0,0.00019262,2]
[369937066,1751788260882,-150.0,0.00019262,2]
[369937067,1751788260891,-364.0,0.00019265,2]
[369937068,1751788260900,-150.0,0.00019268,2]
[369937069,1751788260910,-665.18,0.00019286,2]
[369937070,1751788260919,-1200.0,0.00019287,2]
[369937071,1751788260929,-1400.0,0.00019287,2]
[369937072,1751788260938,-150.0,0.0001929,2]
[369937073,1751788260948,-200.0,0.00019296,2]
[369937074,1751788260958,-150.0,0.000193,2]
[369937076,1751788260967,-152.85550246,0.00019302,2]
[369937078,1751788260976,-150.0,0.00019307,2]
[369937079,1751788260986,-150.0,0.00019313,2]
[369937081,1751788260996,-150.0,0.0001933,2]
[369937082,1751788261005,-836.76783547,0.00019336,2]
[369937083,1751788261015,-642.0,0.00019338,2]
[369937084,1751788261024,-642.0,0.00019345,2]
[369937085,1751788261033,-152.85550246,0.00019347,2]
[369937086,1751788261043,-150.0,0.00019351,2]
[369937088,1751788261052,-1168.09013264,0.00019351,2]
[369937089,1751788261062,-500.0,0.00019353,2]
[369937090,1751788261072,-500.0,0.00019353,2]
[369937091,1751788261081,-677.83,0.00019353,2]
[369937092,1751788261090,-500.0,0.00019354,2]
[369937093,1751788261099,-500.0,0.00019354,2]
[369937094,1751788261108,-564.25,0.00019354,2]
[369937095,1751788261118,-607.69,0.00019354,2]
[369937096,1751788261127,-500.0,0.00019355,2]
[369937097,1751788261136,-500.0,0.00019355,2]
[369937098,1751788261146,-500.0,0.00019355,2]
[369937099,1751788261156,-500.0,0.00019355,2]
[369937100,1751788261166,-500.0,0.00019355,2]
[369937101,1751788261177,-500.0,0.00019355,2]
[369937102,1751788261186,-500.0,0.00019355,2]
[369937103,1751788261197,-500.0,0.00019355,2]
[369937104,1751788261207,-500.0,0.00019355,2]
[369937105,1751788261216,-500.0,0.00019355,2]
[369937106,1751788261226,-500.0,0.00019355,2]
[369937107,1751788261235,-500.0,0.00019355,2]
[369937108,1751788261244,-500.0,0.00019355,2]
[369937109,1751788261254,-500.0,0.00019355,2]
[369937110,1751788261263,-500.0,0.00019355,2]
[369937111,1751788261273,-500.0,0.00019355,2]
[369937112,1751788261282,-500.0,0.00019355,2]
[369937113,1751788261291,-500.0,0.00019355,2]
[369937114,1751788261301,-500.0,0.00019355,2]
[369937115,1751788261311,-500.0,0.00019355,2]
[369937116,1751788261320,-500.0,0.00019355,2]
[369937117,1751788261331,-500.0,0.00019355,2]
[369937118,1751788261340,-500.0,0.00019355,2]
[369937119,1751788261350,-500.0,0.00019355,2]
[369937120,1751788261360,-500.0,0.00019355,2]
[369937121,1751788261369,-500.0,0.00019355,2]
[369937122,1751788261378,-500.0,0.00019355,2]
[369937123,1751788261388,-500.0,0.00019355,2]
[369937124,1751788261397,-500.0,0.00019355,2]
[369937125,1751788261407,-500.0,0.00019355,2]
[369937126,1751788261416,-500.0,0.00019355,2]
[369937127,1751788261425,-500.0,0.00019355,2]
[369937128,1751788261434,-500.0,0.00019355,2]
[369937129,1751788261444,-500.0,0.00019355,2]
[369937131,1751788261453,-500.0,0.00019355,2]
[369937133,1751788261463,-500.0,0.00019355,2]
[369937135,1751788261472,-500.0,0.00019355,2]
[369937137,1751788261481,-500.0,0.00019355,2]
[369937139,1751788261490,-500.0,0.00019355,2]
[369937141,1751788261500,-500.0,0.00019355,2]
[369937143,1751788261509,-500.0,0.00019355,2]
[369937146,1751788261520,-500.0,0.00019355,2]
[369937147,1751788261529,-500.0,0.00019355,2]
[369937148,1751788261538,-500.0,0.00019355,2]
[369937149,1751788261547,-500.0,0.00019355,2]
[369937150,1751788261557,-500.0,0.00019355,2]
[369937151,1751788261566,-500.0,0.00019355,2]
[369937152,1751788261575,-500.0,0.00019355,2]
[369937153,1751788261584,-500.0,0.00019355,2]
[369937154,1751788261594,-500.0,0.00019355,2]
[369937156,1751788261603,-500.0,0.00019355,2]
[369937158,1751788261612,-500.0,0.00019355,2]
[369937160,1751788261621,-500.0,0.00019355,2]
[369937162,1751788261631,-500.0,0.00019355,2]
[369937164,1751788261640,-500.0,0.00019355,2]
[369937165,1751788261650,-500.0,0.00019355,2]
[369937168,1751788261661,-500.0,0.00019355,2]
[369937169,1751788261671,-500.0,0.00019355,2]
[369937171,1751788261681,-500.0,0.00019355,2]
[369937173,1751788261690,-500.0,0.00019355,2]
[369937175,1751788261699,-500.0,0.00019355,2]
[369937176,1751788261710,-500.0,0.00019355,2]
[369937177,1751788261719,-500.0,0.00019355,2]
[369937178,1751788261729,-500.0,0.00019355,2]
[369937179,1751788261738,-500.0,0.00019355,2]
[369937180,1751788261748,-500.0,0.00019355,2]
[369937181,1751788261757,-500.0,0.00019355,2]
[369937182,1751788261767,-500.0,0.00019355,2]
[369937183,1751788261777,-500.0,0.00019355,2]
[369937184,1751788261789,-500.0,0.00019355,2]
[369937185,1751788261799,-500.0,0.00019355,2]
[369937186,1751788261808,-500.0,0.00019355,2]
[369937187,1751788261818,-500.0,0.00019355,2]
[369937188,1751788261827,-500.0,0.00019355,2]
[369937189,1751788261837,-500.0,0.00019355,2]
[369937190,1751788261846,-500.0,0.00019355,2]
[369937191,1751788261856,-500.0,0.00019355,2]
[369937192,1751788261866,-500.0,0.00019355,2]
[369937193,1751788261876,-500.0,0.00019355,2]
[369937194,1751788261885,-500.0,0.00019355,2]
[369937195,1751788261894,-500.0,0.00019355,2]
[369937196,1751788261903,-500.0,0.00019355,2]
[369937197,1751788261913,-500.0,0.00019355,2]
[369937198,1751788261922,-500.0,0.00019355,2]
[369937199,1751788261932,-500.0,0.00019355,2]
[369937200,1751788261941,-500.0,0.00019355,2]
[369937201,1751788261951,-500.0,0.00019355,2]
[369937202,1751788261960,-500.0,0.00019355,2]
[369937203,1751788261969,-500.0,0.00019355,2]
[369937204,1751788261979,-500.0,0.00019355,2]
[369937205,1751788261990,-500.0,0.00019355,2]
[369937206,1751788262000,-500.0,0.00019355,2]
[369937207,1751788262010,-500.0,0.00019355,2]
[369937208,1751788262020,-500.0,0.00019355,2]
[369937209,1751788262034,-500.0,0.00019355,2]
[369937210,1751788262043,-500.0,0.00019355,2]
[369937212,1751788262053,-500.0,0.00019355,2]
[369937214,1751788262062,-500.0,0.00019355,2]
[369937216,1751788262072,-500.0,0.00019355,2]
[369937218,1751788262082,-515.9067,0.00019355,2]
[369937220,1751788262092,-721.0219008,0.00019365,2]
[369937222,1751788262101,-150.0,0.00019371,2]
[369937224,1751788262111,-456.0,0.00019373,2]
[369937226,1751788262120,-151.0,0.00019379,2]
[369937228,1751788262133,-200.0,0.00019382,2]
[369937230,1751788262142,-153.85685236,0.00019382,2]
[369937231,1751788262152,-200.0,0.00019386,2]
[369937234,1751788262161,-150.0,0.00019387,2]
[369937235,1751788262172,-151.93016442,0.00019389,2]
[369937238,1751788262181,-152.85550246,0.00019391,2]
[369937240,1751788262190,-230.9690336,0.00019397,2]
[369937242,1751788262205,-150.0,0.00019409,2]
[369937244,1751788262214,-310.67628388,0.0001941,2]
[369937246,1751788262223,-200.0,0.00019413,2]
[369937248,1751788262232,-3880.3,0.0001942,2]
[369937250,1751788262243,-210.28571445,0.00019428,2]
[369937252,1751788262252,-208.0,0.0001943,2]